fUSD/lending_fUSD_20240407
["ID","MTS","AMOUNT","RATE_DAILY","PERIOD"]
[321759752,1712497860333,-6000.0,0.00026463,7]
[321759753,1712497860342,-1000.0,0.000265,2]
[321759754,1712497860352,-206.52044857,0.00026516,2]
[321759755,1712497860361,-150.61093648,0.00026538,2]
[321759756,1712497860371,-155.01816655,0.00026576,2]
[321759757,1712497860381,-270.13023947,0.00026589,2]
[321759758,1712497860390,-151.36062497,0.00026638,2]
[321759759,1712497860400,-705.0,0.00026712,2]
[321759760,1712497860413,-151.36062497,0.00026716,2]
[321759761,1712497860423,-150.61093648,0.00026726,2]
[321759762,1712497860435,-4000.0,0.0002673,2]
[321759763,1712497860445,-150.61093648,0.00026749,2]
[321759764,1712497860454,-152.21975544,0.00026771,2]
[321759765,1712497860463,-152.0,0.00026818,3]
[321759766,1712497860474,-376.96,0.00026826,2]
[321759767,1712497860484,-22848.8888723,0.00026877,2]
[321759768,1712497860494,-1030.44,0.000269,2]
[321759769,1712497860503,-1322.47,0.000269,2]
[321759770,1712497860513,-158.87544862,0.00026942,2]
[321759771,1712497860522,-265.99140017,0.0002696,2]
[321759772,1712497860532,-206.52044857,0.00026998,2]
[321759773,1712497860541,-8755.87809049,0.00027,2]
[321759774,1712497860562,-500.0,0.00024931,2]
[321759775,1712497860571,-10689.84693621,0.00027,2]
[321759776,1712497860581,-10949.02311139,0.00027,2]
[321759777,1712497860590,-95105.43542904,0.00027,2]
[321759778,1712497860602,-600.99999172,0.00027,2]
[321759779,1712497860613,-727.59900343,0.00027,2]
[321759780,1712497860629,-1552.63950433,0.00027,2]
[321759781,1712497888118,155.0,0.00018717,2]
[321759783,1712497930954,4542.81346014,0.000199,3]
[321759784,1712497952287,244.53158263,0.00016798,2]
[321759788,1712498348053,299.99,0.00020514,7]
[321759789,1712498405722,3065.93,0.00020877,14]
[321759790,1712498425557,1158.53650458,0.00020895,4]
[321759791,1712498439996,517.34,0.00017501,2]
[321759799,1712498603038,500.0,0.00018394,2]
[321759800,1712498622192,500.0,0.00018421,2]
[321759801,1712498720453,1183.5,0.00018417,2]
[321759802,1712498746608,7186.19,0.00018416,2]
[321759803,1712498774234,150.0,0.0001842,2]
[321759804,1712498788309,282.26,0.00018379,2]
[321759805,1712498800738,250.0,0.00018393,2]
[321759806,1712498803139,-740.44437534,0.00018588,2]
[321759807,1712498805574,169.14,0.00018363,2]
[321759808,1712498832624,200.0,0.000199,7]
[321759809,1712498834724,500.0,0.0002,7]
[321759810,1712498836823,700.0,0.000201,7]
[321759811,1712498838929,1000.0,0.000202,7]
[321759812,1712498841056,1300.0,0.000203,7]
[321759813,1712498843170,200.0,0.000204,7]
[321759814,1712498845306,200.0,0.000205,7]
[321759815,1712498847490,200.0,0.000206,7]
[321759816,1712498848232,-3158.03215725,0.00018583,2]
[321759817,1712498848257,-404.64904751,0.00018583,2]
[321759818,1712498848278,-408.01157914,0.00018583,2]
[321759819,1712498848298,-809.08158788,0.00018584,2]
[321759820,1712498848318,-210.06112711,0.00018584,2]
[321759821,1712498848340,-165.71746394,0.00018584,2]
[321759822,1712498848360,-155.0,0.00018584,2]
[321759823,1712498848380,-261.60041953,0.00018585,2]
[321759824,1712498848400,-161.06954375,0.00018585,2]
[321759825,1712498848420,-4571.54577774,0.00018585,2]
[321759826,1712498848440,-155.0,0.00018586,2]
[321759827,1712498848460,-1241.19748567,0.00018586,2]
[321759828,1712498848482,-408.00420871,0.00018586,2]
[321759829,1712498849529,200.0,0.000207,7]
[321759830,1712498851624,728.0,0.000208,7]
[321759831,1712498854083,1338.42,0.00018093,2]
[321759832,1712498876418,5949.64,0.00017996,2]
[321759839,1712498945097,-150.0,0.00018573,2]
[321759840,1712498945120,-1096.1596,0.00018574,2]
[321759841,1712498956101,-210.06112711,0.00018573,2]
[321759842,1712498956121,-1253.31885723,0.00018574,2]
[321759843,1712498956140,-2353.80413367,0.00018574,2]
[321759844,1712498956159,-155.0,0.00018574,2]
[321759845,1712498956177,-500.0,0.00018574,2]
[321759846,1712498956198,-4465.75619085,0.00018574,2]
[321759847,1712498956216,-486.03849486,0.00018575,2]
[321759848,1712498956237,-736.2979285,0.00018575,2]
[321759849,1712498956255,-1241.19748567,0.00018575,2]
[321759850,1712498956274,-155.0,0.00018575,2]
[321759851,1712498956293,-26022.29908297,0.00018576,2]
[321759852,1712498962093,-205.88907818,0.00018571,2]
[321759853,1712498962114,-536.60711953,0.00018572,2]
[321759854,1712498962134,-1968.79710509,0.00018573,2]
[321759855,1712498962153,-9061.38325325,0.00018576,2]
[321759856,1712498962173,-4311.7785482,0.00018576,2]
[321759857,1712498962196,-5532.00830868,0.00018576,2]
[321759858,1712498962218,-779.36919387,0.00018577,2]
[321759859,1712498962238,-164.08625314,0.00018577,2]
[321759860,1712498962258,-704.64333317,0.00018577,2]
[321759861,1712498962279,-295.8857038,0.00018577,2]
[321759862,1712498962302,-304.53242447,0.00018577,2]
[321759863,1712498962324,-155.0,0.00018578,2]
[321759864,1712498962345,-25187.4807277,0.00018579,2]
[321759865,1712498962366,-409.44694785,0.0001858,2]
[321759866,1712498962385,-155.0,0.00018583,2]
[321759867,1712498962405,-155.57257792,0.00018583,2]
[321759868,1712498962424,-558.04441203,0.00018583,2]
[321759869,1712498962444,-180.45952597,0.00018583,2]
[321759870,1712498962465,-185.22040692,0.00018583,2]
[321759871,1712498962486,-155.61919516,0.00018583,2]
[321759872,1712498962508,-425.10051793,0.00018583,2]
[321759873,1712498962529,-247.7815178,0.00018583,2]
[321759874,1712498962551,-156.62716153,0.00018583,2]
[321759875,1712498962571,-1037.40330416,0.00018583,2]
[321759876,1712498962593,-930.4421379,0.00018583,2]
[321759877,1712498962614,-1611.74970554,0.00018583,2]
[321759878,1712498962636,-245.2265063,0.00018583,2]
[321759879,1712498962659,-181.99207643,0.00018583,2]
[321759880,1712498962680,-155.0,0.00018583,2]
[321759881,1712498962702,-224.89823731,0.00018583,2]
[321759882,1712498962724,-268.2691386,0.00018583,2]
[321759883,1712498962747,-156.25814209,0.00018583,2]
[321759884,1712498962769,-158.08223632,0.00018583,2]
[321759885,1712498962792,-1817.24766269,0.00018583,2]
[321759886,1712498962813,-253.66916262,0.00018583,2]
[321759887,1712498962835,-155.25645355,0.00018583,2]
[321759888,1712498962857,-155.30282142,0.00018583,2]
[321759889,1712498962879,-170.99115751,0.00018583,2]
[321759890,1712498962902,-1041.24860215,0.00018583,2]
[321759891,1712498962924,-624.81043763,0.00018583,2]
[321759892,1712498962946,-225.97268783,0.00018583,2]
[321759893,1712498962968,-156.34656449,0.00018584,2]
[321759894,1712498962987,-679.11259617,0.00018584,2]
[321759895,1712498963008,-204.79846386,0.00018584,2]
[321759896,1712498963031,-380.02079815,0.00018584,2]
[321759897,1712498963053,-156.10100077,0.00018584,2]
[321759898,1712498963075,-156.38278785,0.00018584,2]
[321759899,1712498963097,-503.78712459,0.00018584,2]
[321759900,1712498963119,-43737.04598356,0.00018585,2]
[321759904,1712498972092,-155.0,0.0001857,2]
[321759905,1712498972114,-522.63989634,0.00018571,2]
[321759906,1712498972134,-156.83389544,0.00018571,2]
[321759907,1712498972153,-161.06954375,0.00018571,2]
[321759908,1712498972175,-4571.54577774,0.00018582,2]
[321759909,1712498972198,-235.91044391,0.00018583,2]
[321759910,1712498972218,-232.53622323,0.00018583,2]
[321759911,1712498972240,-529.62983942,0.00018583,2]
[321759912,1712498972259,-244.64951035,0.00018583,2]
[321759913,1712498972282,-167.74862788,0.00018583,2]
[321759914,1712498972301,-256.68232681,0.00018583,2]
[321759915,1712498972320,-200.0,0.00018583,2]
[321759916,1712498972339,-310.95683403,0.00018583,2]
[321759917,1712498972360,-291.85086018,0.00018583,2]
[321759918,1712498972380,-278.10528361,0.00018583,2]
[321759919,1712498972399,-15584.24938652,0.00018583,2]
[321759920,1712498972419,-180.51996011,0.00018583,2]
[321759921,1712498972439,-191.32292159,0.00018583,2]
[321759922,1712498972458,-214.91323373,0.00018583,2]
[321759923,1712498972478,-503.28363425,0.00018583,2]
[321759924,1712498972497,-794.81140274,0.00018583,2]
[321759925,1712498972517,-347.38507837,0.00018583,2]
[321759926,1712498972536,-8882.80524631,0.00018583,2]
[321759927,1712498972556,-4465.75619085,0.00018583,2]
[321759928,1712498972575,-1149.41246922,0.00018583,2]
[321759929,1712498972595,-158.21859507,0.00018583,2]
[321759930,1712498972616,-155.0,0.00018583,2]
[321759931,1712498972635,-287.37341859,0.00018584,2]
[321759932,1712498972655,-395.58555963,0.00018584,2]
[321759933,1712498972674,-200.40383424,0.00018584,2]
[321759934,1712498972693,-155.42857161,0.00018584,2]
[321759935,1712498972712,-155.0,0.00018584,2]
[321759936,1712498972737,-141161.59143448,0.00018585,2]
[321759937,1712498987694,310.44,0.00018089,2]
[321759940,1712498992043,23900.0,0.0001807,2]
[321759941,1712499001134,800.0,0.0001807,2]
[321759958,1712499037796,-779.36919387,0.00018562,2]
[321759959,1712499037805,-662.07520958,0.00018562,2]
[321759960,1712499037814,-704.64333317,0.00018562,2]
[321759961,1712499037824,-486.03849486,0.00018562,2]
[321759962,1712499037833,-155.0,0.00018563,2]
[321759963,1712499037843,-1241.19748567,0.00018563,2]
[321759964,1712499037853,-1210.82205052,0.00018563,2]
[321759965,1712499037862,-123.44548054,0.00018564,2]
[321759966,1712499037885,-50.37375901,0.00018564,2]
[321759967,1712499037895,-155.0,0.00018564,2]
[321759968,1712499037904,-6389.74782867,0.00018564,2]
[321759969,1712499038163,-8366.913355,0.00018564,2]
[321759970,1712499038173,-1125.41559954,0.00018565,2]
[321759971,1712499038182,-155.0,0.00018565,2]
[321759972,1712499038192,-620.31159771,0.00018565,2]
[321759973,1712499038202,-963.49855953,0.00018566,2]
[321759974,1712499038212,-940.49865191,0.00018571,2]
[321759975,1712499038222,-446.98536618,0.00018581,2]
[321759977,1712499038239,-400.0,0.00018581,2]
[321759979,1712499038251,-155.0,0.00018581,2]
[321759981,1712499038261,-5375.52133588,0.00018581,2]
[321759982,1712499038272,-165.71746394,0.00018581,2]
[321759983,1712499038281,-10381.64059871,0.00018581,2]
[321759984,1712499038294,-41044.166819,0.00018581,2]
[321759985,1712499038325,-33701.5989202,0.00018581,2]
[321759986,1712499038352,-598491.92601451,0.00018581,2]
[321759987,1712499038361,-155.0,0.00018581,2]
[321759988,1712499038371,-312.61768174,0.00018581,2]
[321759989,1712499038380,-155.0,0.00018581,2]
[321759990,1712499038389,-261.60041953,0.00018582,2]
[321759991,1712499038398,-556.70589269,0.00018583,2]
[321759992,1712499038407,-199.06250695,0.00018583,2]
[321759993,1712499038417,-1764.087237,0.00018583,2]
[321759994,1712499038428,-239.68779562,0.00018583,2]
[321759995,1712499038437,-4595.18933983,0.00018583,2]
[321759996,1712499038447,-536.36326825,0.00018583,2]
[321759997,1712499038456,-155.8559771,0.00018583,2]
[321759998,1712499038466,-353.7179818,0.00018583,2]
[321759999,1712499038475,-155.0,0.00018583,2]
[321760000,1712499038484,-304.53242447,0.00018583,2]
[321760001,1712499038494,-170.78473783,0.00018583,2]
[321760002,1712499038503,-4347.14205518,0.00018583,2]
[321760003,1712499038512,-5357.36156544,0.00018583,2]
[321760004,1712499038521,-301.07124124,0.00018583,2]
[321760005,1712499038530,-157.40175635,0.00018583,2]
[321760006,1712499038540,-423.73266533,0.00018583,2]
[321760007,1712499038550,-156.44070431,0.00018583,2]
[321760008,1712499038559,-155.0,0.00018583,2]
[321760009,1712499038568,-4465.75619085,0.00018583,2]
[321760010,1712499038577,-164.01340579,0.00018584,2]
[321760011,1712499038587,-303.95640203,0.00018584,2]
[321760012,1712499038596,-156.16686838,0.00018584,2]
[321760013,1712499038605,-309.73423132,0.00018585,2]
[321760014,1712499038614,-6605.5747398,0.00018586,2]
[321760015,1712499038622,-175.61,0.00018593,2]
[321760016,1712499038632,-905.53,0.00018593,2]
[321760017,1712499038641,-282.145369,0.0001863,2]
[321760018,1712499038650,-20209.11,0.00018644,2]
[321760019,1712499038660,-499.99,0.00018644,2]
[321760020,1712499038669,-161.15708797,0.00018653,2]
[321760021,1712499038678,-800.0,0.0001874,2]
[321760022,1712499038687,-186.87,0.00018762,2]
[321760023,1712499038696,-6835.00788466,0.00018894,2]
[321760024,1712499038706,-10208.97,0.00018894,2]
[321760025,1712499038715,-4577.01,0.00018894,2]
[321760026,1712499038724,-3620.85,0.00018894,2]
[321760027,1712499038735,-155.62226538,0.00018898,2]
[321760028,1712499038745,-150.99,0.00018898,2]
[321760029,1712499038755,-10798.58360304,0.00018922,2]
[321760030,1712499038764,-175.72,0.00018968,2]
[321760031,1712499038773,-805205.26453662,0.00018999,2]
[321760032,1712499038782,-233.30648504,0.00019,2]
[321760033,1712499038791,-102241.72708928,0.00019022,2]
[321760034,1712499038801,-528.56,0.00019107,2]
[321760035,1712499038810,-528.56,0.00019112,2]
[321760036,1712499038820,-528.56,0.00019117,2]
[321760037,1712499038829,-528.56,0.00019122,2]
[321760038,1712499038838,-800.0,0.00019123,2]
[321760039,1712499038848,-528.56,0.00019127,2]
[321760040,1712499038858,-528.56,0.00019132,2]
[321760041,1712499038867,-528.56,0.00019137,2]
[321760042,1712499038876,-528.56,0.00019142,2]
[321760043,1712499038886,-528.56,0.00019147,2]
[321760044,1712499038895,-528.56,0.00019152,2]
[321760045,1712499038905,-528.56,0.00019157,2]
[321760046,1712499038914,-72838.089,0.00019162,2]
[321760047,1712499038923,-528.56,0.00019162,2]
[321760048,1712499038933,-528.56,0.00019167,2]
[321760049,1712499038943,-528.56,0.00019172,2]
[321760050,1712499038952,-528.56,0.00019177,2]
[321760051,1712499038962,-153.58,0.0001918,2]
[321760052,1712499038971,-153.58,0.0001918,2]
[321760053,1712499038980,-153.58,0.0001918,2]
[321760054,1712499038989,-153.58,0.0001918,2]
[321760055,1712499038999,-153.58,0.0001918,2]
[321760056,1712499039009,-153.58,0.0001918,2]
[321760057,1712499039017,-153.58,0.0001918,2]
[321760058,1712499039027,-528.56,0.00019182,2]
[321760059,1712499039037,-528.56,0.00019187,2]
[321760060,1712499039046,-528.56,0.00019192,2]
[321760061,1712499039055,-528.56,0.00019197,2]
[321760062,1712499039064,-528.56,0.00019203,2]
[321760063,1712499039074,-940.49865191,0.00019221,2]
[321760064,1712499039084,-102241.72708925,0.00019231,2]
[321760065,1712499039093,-200.0,0.0001931,2]
[321760066,1712499039103,-161.15708795,0.00019369,2]
[321760067,1712499039112,-153.58,0.00019429,2]
[321760068,1712499039121,-991.97089497,0.00019439,2]
[321760069,1712499039131,-102241.72708925,0.00019439,2]
[321760070,1712499039141,-282.145369,0.00019452,2]
[321760071,1712499039150,-175.61,0.00019562,2]
[321760072,1712499039159,-102241.72708925,0.00019648,2]
[321760073,1712499039169,-91641.2077,0.00019753,2]
[321760074,1712499039178,-300.0,0.00019778,2]
[321760075,1712499039187,-167.0,0.00019855,2]
[321760076,1712499039197,-102241.72708925,0.00019857,2]
[321760077,1712499039206,-388.7283438,0.00019948,2]
[321760078,1712499039215,-979.32,0.0001995,2]
[321760079,1712499039228,-155.49408914,0.00019998,2]
[321760080,1712499039237,-705.36197178,0.00019999,2]
[321760081,1712499039247,-326.50550398,0.0002,2]
[321760082,1712499039257,-857.85739397,0.0002,2]
[321760083,1712499039273,-686.8681172,0.0002,2]
[321760084,1712499039283,-155.0,0.0002,2]
[321760085,1712499039292,-1044.97705237,0.0002,2]
[321760086,1712499039302,-156.66634096,0.0002,2]
[321760087,1712499039313,-1253.3592145,0.0002,2]
[321760088,1712499039323,-13545.65655019,0.0002,2]
[321760089,1712499039333,-3056.72436352,0.0002,2]
[321760090,1712499039343,-1762.27300257,0.0002,2]
[321760091,1712499039352,-102241.72708925,0.00020065,2]
[321760092,1712499039362,-161.15708795,0.00020084,2]
[321760093,1712499039371,-1000.0,0.00020201,2]
[321760094,1712499039380,-282.145369,0.00020274,2]
[321760095,1712499039390,-102241.72708925,0.00020274,2]
[321760096,1712499039399,-18286.9959,0.00020301,2]
[321760097,1712499039410,-4740.9745,0.00020301,2]
[321760098,1712499039419,-40509.6077,0.00020301,2]
[321760099,1712499039429,-800.0,0.00020329,2]
[321760100,1712499039438,-12925.26842472,0.00020351,2]
[321760101,1712499039448,-357.6,0.00020387,2]
[321760102,1712499039459,-2010.69013527,0.00020388,2]
[321760103,1712499039470,-188.53243001,0.00020399,3]
[321760104,1712499039480,-33457.74065376,0.00020399,2]
[321760105,1712499039489,-210.0,0.0002043,2]
[321760106,1712499039500,-102241.72708925,0.00020483,2]
[321760107,1712499039509,-12925.26842472,0.00020488,2]
[321760108,1712499039519,-1000.0,0.00020499,2]
[321760109,1712499039529,-167.0,0.00020511,2]
[321760110,1712499039540,-165.99,0.00020514,2]
[321760111,1712499039550,-5606.4,0.00020548,2]
[321760112,1712499039561,-12925.26842472,0.00020626,2]
[321760113,1712499039571,-1712.44856297,0.00020645,2]
[321760114,1712499039581,-33457.74065374,0.0002065,2]
[321760115,1712499039590,-1604.87,0.00020686,2]
[321760116,1712499039599,-349.23,0.00020686,2]
[321760117,1712499039609,-102241.72708925,0.00020691,2]
[321760118,1712499039619,-7500.0,0.00020697,2]
[321760119,1712499039627,-5949.64,0.00020736,2]
[321760120,1712499039639,-12925.26842472,0.00020763,2]
[321760122,1712499039649,-316.95161552,0.00020782,2]
[321760123,1712499039659,-155.71370285,0.00020788,2]
[321760124,1712499039668,-27143.5692,0.00020797,2]
[321760125,1712499039679,-161.15708795,0.000208,2]
[321760126,1712499039688,-2000.0,0.000208,2]
[321760127,1712499039698,-200.0,0.000208,2]
[321760128,1712499039707,-316.95161552,0.00020841,2]
[321760129,1712499039716,-800.0,0.00020877,2]
[321760130,1712499039725,-940.49865191,0.00020888,2]
[321760131,1712499039735,-155.0,0.00020893,2]
[321760132,1712499039744,-30611.0507,0.00020897,2]
[321760133,1712499039753,-2064.2515,0.00020897,2]
[321760147,1712499039922,-500.0,0.00020898,2]
[321760149,1712499039931,-155.22795944,0.00020898,2]
[321760151,1712499039941,-5667607.39593593,0.00020898,2]
[321760153,1712499039950,-2817.43912718,0.00020899,2]
[321760155,1712499039959,-222.16644446,0.00020899,2]
[321760157,1712499039968,-155.22795942,0.00020899,2]
[321760159,1712499039978,-3442.64413368,0.00020899,3]
[321760161,1712499039987,-3442.64413368,0.00020899,3]
[321760163,1712499039996,-3442.64413368,0.000209,3]
[321760165,1712499040006,-495.7896,0.000209,2]
[321760166,1712499040015,-3442.64413368,0.000209,3]
[321760167,1712499040024,-9876.40126314,0.000209,2]
[321760168,1712499040033,-200.0,0.000209,2]
[321760170,1712499040043,-200.0,0.000209,2]
[321760172,1712499040052,-200.0,0.000209,2]
[321760174,1712499040061,-200.0,0.000209,2]
[321760176,1712499040070,-200.0,0.000209,2]
[321760178,1712499040079,-163.0,0.000209,2]
[321760180,1712499040089,-179.71752547,0.000209,2]
[321760182,1712499040098,-1428.76780591,0.000209,2]
[321760183,1712499040107,-3200.48377089,0.000209,2]
[321760184,1712499040117,-160.0,0.000209,2]
[321760185,1712499040126,-12925.26842472,0.000209,2]
[321760186,1712499040135,-1856.90490674,0.000209,2]
[321760187,1712499040145,-102241.72708925,0.000209,2]
[321760188,1712499040154,-316.95161552,0.000209,2]
[321760189,1712499040163,-2277.95528611,0.000209,2]
[321760190,1712499040172,-5306.712215,0.000209,2]
[321760191,1712499040181,-2817.43912718,0.000209,2]
[321760192,1712499040191,-222.16644446,0.000209,2]
[321760193,1712499040200,-155.22795942,0.000209,2]
[321760194,1712499040210,-1737.02,0.000209,2]
[321760195,1712499040219,-2229.3,0.000209,2]
[321760196,1712499040228,-3442.64413368,0.000209,3]
[321760197,1712499040241,-33457.74065374,0.000209,2]
[321760198,1712499040250,-1302.13006648,0.000209,2]
[321760199,1712499040259,-173.33033892,0.000209,2]
[321760200,1712499040269,-24091.9824572,0.00020986,2]
[321760201,1712499040279,-22996.4841867,0.00020986,2]
[321760202,1712499040289,-356.39421439,0.00020987,2]
[321760203,1712499040298,-11518.15976572,0.00020997,2]
[321760204,1712499040308,-208.03176831,0.00020998,2]
[321760205,1712499040317,-155.0,0.00020998,2]
[321760206,1712499040326,-157.96318997,0.00020998,2]
[321760207,1712499040335,-166.88650538,0.00020998,2]
[321760208,1712499040344,-155.0,0.00020998,2]
[321760209,1712499040353,-155.20654588,0.00020998,2]
[321760210,1712499040364,-1211.3956422,0.00020998,2]
[321760211,1712499040373,-211.84851613,0.00020998,2]
[321760212,1712499040383,-252.0032256,0.00020998,2]
[321760213,1712499040393,-156.0026956,0.00020998,3]
[321760214,1712499040403,-174.27613434,0.00020998,2]
[321760215,1712499040412,-155.0,0.00020998,2]
[321760216,1712499040422,-184.99361137,0.00020998,2]
[321760217,1712499040431,-200.61274342,0.00020998,2]
[321760218,1712499040440,-244.98397099,0.00020998,2]
[321760219,1712499040449,-177.53843708,0.00020998,2]
[321760220,1712499040459,-210.37739858,0.00020998,2]
[321760221,1712499040468,-261.16504767,0.00020998,2]
[321760222,1712499040478,-203.60014587,0.00020998,2]
[321760223,1712499040487,-155.60473993,0.00020998,2]
[321760224,1712499040496,-262.83183104,0.00020998,2]
[321760225,1712499040505,-228.69841838,0.00020998,2]
[321760226,1712499040515,-155.93527969,0.00020998,2]
[321760227,1712499040524,-187.93435087,0.00020998,2]
[321760228,1712499040533,-163.70329151,0.00020998,2]
[321760229,1712499040543,-156.56179884,0.00020998,2]
[321760230,1712499040552,-155.62348997,0.00020998,2]
[321760231,1712499040561,-221.59943082,0.00020998,2]
[321760232,1712499040571,-155.65339939,0.00020998,2]
[321760233,1712499040580,-240.02740078,0.00020998,2]
[321760234,1712499040590,-156.09654372,0.00020998,2]
[321760235,1712499040599,-159.36321711,0.00020998,2]
[321760236,1712499040608,-295.12321122,0.00020998,2]
[321760237,1712499040617,-157.09483559,0.00020998,2]
[321760238,1712499040626,-254.65583011,0.00020998,2]
[321760239,1712499040635,-273.73705132,0.00020998,2]
[321760240,1712499040645,-244.97936461,0.00020998,2]
[321760241,1712499040654,-304.57157206,0.00020998,2]
[321760242,1712499040664,-570.89706792,0.00020998,2]
[321760243,1712499040674,-155.0,0.00020998,2]
[321760244,1712499040683,-284.24425826,0.00020998,2]
[321760245,1712499040693,-171.90686635,0.00020998,2]
[321760246,1712499040702,-1222.24259155,0.00020998,2]
[321760247,1712499040712,-206.23207189,0.00020998,2]
[321760248,1712499040721,-3374.18597777,0.00020998,2]
[321760249,1712499040731,-266.51965949,0.00020998,2]
[321760250,1712499040741,-404.47743846,0.00020998,2]
[321760251,1712499040750,-274.86977578,0.00020998,2]
[321760252,1712499040759,-386.03555579,0.00020998,2]
[321760253,1712499040769,-155.0,0.00020998,2]
[321760254,1712499040778,-537.88379237,0.00020998,2]
[321760255,1712499040788,-155.046986,0.00020998,2]
[321760256,1712499040797,-228.04472199,0.00020999,2]
[321760257,1712499040807,-34671966.98474187,0.00021,2]
[321760258,1712499041193,-19716324.38513726,0.00021,2]
[321760259,1712499041202,-2236277.03012954,0.00021,2]
[321760260,1712499041215,-1841790.64880427,0.00021,2]
[321760261,1712499041858,168.23,0.00018434,2]
[321760262,1712499041882,-500.0,0.00018561,2]
[321760263,1712499041892,-1263.50601455,0.00018561,2]
[321760264,1712499041903,-318.2530643,0.00018561,2]
[321760265,1712499041948,-0.09689681,0.00018561,2]
[321760266,1712499042330,508.01,0.00018108,2]
[321760267,1712499042960,-2729.92257254,0.00018561,2]
[321760268,1712499042970,-155.0,0.00018561,2]
[321760269,1712499042979,-446.98536618,0.00018561,2]
[321760270,1712499042990,-508.01,0.00020372,2]
[321760271,1712499042999,-2010.69013525,0.00020644,2]
[321760272,1712499043009,-455.67,0.00020899,2]
[321760273,1712499043018,-8308.76627972,0.00020899,2]
[321760274,1712499043029,-305.19361246,0.00020899,2]
[321760275,1712499043040,-1386.03010782,0.00020899,2]
[321760276,1712499043049,-4617.66829273,0.00021,2]
[321760277,1712499043080,-11183.58191689,0.00021,2]
[321760307,1712499047338,-2010.69013525,0.000209,2]
[321760308,1712499047348,-7002.41081906,0.00021,2]
[321760309,1712499047371,-331.70627492,0.00021,2]
[321760325,1712499063780,323.14134565,0.0001807,2]
[321760326,1712499064971,178.97666498,0.00020899,4]
[321760327,1712499080465,531.59643904,0.00020997,7]
[321760329,1712499242310,1716.23,0.00020014,4]
[321760330,1712499629873,479.9,0.00017691,2]
[321760331,1712500009119,-470.07205527,0.000191,2]
[321760332,1712500133477,455.9,0.00017378,2]
[321760337,1712500145122,-261.60041953,0.00018994,2]
[321760338,1712500145146,-500.0,0.00018995,2]
[321760339,1712500145169,-161.33262701,0.00019095,2]
[321760340,1712500145192,-300.0,0.00019196,2]
[321760341,1712500145217,-150.0,0.00019196,2]
[321760342,1712500145241,-150.0,0.00019196,2]
[321760343,1712500145266,-8339.18370703,0.00019197,2]
[321760344,1712500152590,271.14723,0.00018899,2]
[321760345,1712500152610,2070.26763287,0.00018899,2]
[321760346,1712500159112,-984.11968613,0.00018899,2]
[321760347,1712500159133,-4965.44900795,0.00019197,2]
[321760367,1712500232214,-3862.0,0.00019319,2]
[321760368,1712500232224,-150.0,0.00019352,2]
[321760369,1712500232234,-2561.45320501,0.00019353,2]
[321760370,1712500232348,-0.01580207,0.00019353,2]
[321760390,1712500238103,-21338.53099292,0.00019353,2]
[321760391,1712500238113,-267.19,0.00019392,2]
[321760392,1712500238123,-165.99,0.00019609,2]
[321760393,1712500238132,-1000.0,0.00019637,2]
[321760394,1712500238142,-250.0,0.00019637,2]
[321760395,1712500238151,-455.9,0.00019642,2]
[321760396,1712500238160,-499.99,0.0001992,2]
[321760397,1712500238169,-167.67,0.00019967,2]
[321760398,1712500238179,-17756.21538281,0.0001999,2]
[321760399,1712500238188,-1000.0,0.0002,2]
[321760400,1712500238197,-150.0,0.0002,2]
[321760401,1712500238207,-13545.65655019,0.0002,2]
[321760402,1712500238217,-3056.72436352,0.00020003,2]
[321760403,1712500238226,-1762.27300257,0.00020004,2]
[321760404,1712500238236,-1253.3592145,0.00020004,2]
[321760405,1712500238246,-326.50550398,0.00020005,2]
[321760406,1712500238256,-150.99,0.00020315,2]
[321760407,1712500238265,-186.87,0.00020316,2]
[321760408,1712500238275,-197.501759,0.00020548,2]
[321760409,1712500238284,-7110.2058,0.00020599,2]